[Event "GrandPrix_29.05"]
[Site "Chess.com"]
[Date "2020.05.29"]
[Round "8"]
[White "igorkovalenko"]
[Black "Gabix_94"]
[Result "1-0"]
[WhiteElo "2331"]
[BlackElo "2413"]
[TimeControl "600+2"]
[EndTime "12:59:40 PDT"]
[Termination "igorkovalenko won by checkmate"]

1. d4 {[%clk 0:10:01.9]} 1... Nf6 {[%clk 0:09:59.5]} 2. Nf3 {[%clk 0:10:02.8]}
2... g6 {[%clk 0:09:53.6]} 3. Bf4 {[%clk 0:09:43.8]} 3... Bg7 {[%clk 0:09:49.7]}
4. e3 {[%clk 0:09:42.4]} 4... O-O {[%clk 0:09:50.4]} 5. h3 {[%clk 0:09:43.6]}
5... d6 {[%clk 0:09:50.6]} 6. c3 {[%clk 0:09:43.6]} 6... Nfd7 {[%clk 0:09:50.4]}
7. Bh2 {[%clk 0:09:39.7]} 7... e5 {[%clk 0:09:50.6]} 8. Nbd2 {[%clk 0:09:39.6]}
8... Nc6 {[%clk 0:09:46.9]} 9. Bb5 {[%clk 0:09:37.9]} 9... Qe7 {[%clk
0:09:38.8]} 10. O-O {[%clk 0:09:32.1]} 10... e4 {[%clk 0:09:36.2]} 11. Ne1
{[%clk 0:09:32.8]} 11... f5 {[%clk 0:09:37.1]} 12. Nc2 {[%clk 0:09:29.2]} 12...
Nf6 {[%clk 0:09:36.6]} 13. f3 {[%clk 0:09:16.6]} 13... a6 {[%clk 0:09:15.1]} 14.
Ba4 {[%clk 0:08:59.5]} 14... Bd7 {[%clk 0:09:03.5]} 15. Bb3+ {[%clk 0:08:28.8]}
15... Kh8 {[%clk 0:09:02.9]} 16. Qe2 {[%clk 0:08:29.6]} 16... Na5 {[%clk
0:08:55.8]} 17. f4 {[%clk 0:08:16.4]} 17... c5 {[%clk 0:08:17.4]} 18. Bg3 {[%clk
0:08:06.8]} 18... b5 {[%clk 0:07:38.9]} 19. a3 {[%clk 0:06:52]} 19... Nxb3
{[%clk 0:07:32.3]} 20. Nxb3 {[%clk 0:06:53.9]} 20... Be6 {[%clk 0:07:33.2]} 21.
Nd2 {[%clk 0:06:54.3]} 21... Qb7 {[%clk 0:07:28.4]} 22. Bh4 {[%clk 0:06:51]}
22... Nd5 {[%clk 0:07:21.2]} 23. Rfd1 {[%clk 0:06:28.9]} 23... Nb6 {[%clk
0:07:19.8]} 24. Nf1 {[%clk 0:05:48.8]} 24... Na4 {[%clk 0:07:09.6]} 25. Ne1
{[%clk 0:05:49.5]} 25... Bb3 {[%clk 0:07:08.1]} 26. Rd2 {[%clk 0:05:50.5]} 26...
Rae8 {[%clk 0:06:52.3]} 27. Qf2 {[%clk 0:05:39.7]} 27... Nb6 {[%clk 0:06:51]}
28. g3 {[%clk 0:05:11.8]} 28... a5 {[%clk 0:06:03.6]} 29. Ng2 {[%clk 0:04:58.4]}
29... a4 {[%clk 0:06:02.4]} 30. g4 {[%clk 0:04:57.5]} 30... fxg4 {[%clk
0:05:41.5]} 31. hxg4 {[%clk 0:04:58.4]} 31... Qc8 {[%clk 0:05:35.6]} 32. Nh2
{[%clk 0:04:57.5]} 32... cxd4 {[%clk 0:05:31.1]} 33. cxd4 {[%clk 0:04:57.5]}
33... Nd5 {[%clk 0:05:20.6]} 34. Qg3 {[%clk 0:04:53.5]} 34... Qd7 {[%clk
0:05:12.3]} 35. Bg5 {[%clk 0:04:42.2]} 35... Kg8 {[%clk 0:05:09.5]} 36. Qh4
{[%clk 0:04:41.2]} 36... Rf7 {[%clk 0:05:01.5]} 37. Bh6 {[%clk 0:04:34.3]} 37...
Bf6 {[%clk 0:05:01]} 38. Qg3 {[%clk 0:04:35.5]} 38... Bd8 {[%clk 0:04:54]} 39.
Rf2 {[%clk 0:04:34.7]} 39... Bc4 {[%clk 0:04:50.9]} 40. Kh1 {[%clk 0:04:34.2]}
40... b4 {[%clk 0:04:46.5]} 41. axb4 {[%clk 0:04:34.9]} 41... Nxb4 {[%clk
0:04:47.4]} 42. Nh4 {[%clk 0:04:19.5]} 42... Nd3 {[%clk 0:04:45.9]} 43. Rg2
{[%clk 0:04:20.4]} 43... Qb5 {[%clk 0:03:57.5]} 44. g5 {[%clk 0:03:58.8]} 44...
Be6 {[%clk 0:03:56]} 45. Ng4 {[%clk 0:03:59.8]} 45... Bxg4 {[%clk 0:03:55.5]}
46. Qxg4 {[%clk 0:04:01.7]} 46... Be7 {[%clk 0:03:03.8]} 47. f5 {[%clk
0:03:09.5]} 47... gxf5 {[%clk 0:03:03.8]} 48. Qh3 {[%clk 0:03:07]} 48... f4
{[%clk 0:02:55.5]} 49. g6 {[%clk 0:03:04.9]} 49... hxg6 {[%clk 0:02:45.8]} 50.
Nxg6 {[%clk 0:02:58.2]} 50... Rh7 {[%clk 0:02:40.8]} 51. Qe6+ {[%clk 0:02:48.2]}
51... Rf7 {[%clk 0:02:38.6]} 52. Ne5+ {[%clk 0:02:48.6]} 52... Kh7 {[%clk
0:02:39.7]} 53. Qxf7+ {[%clk 0:02:48.9]} 53... Kxh6 {[%clk 0:02:41.6]} 54. Qg6#
{[%clk 0:02:48.9]} 1-0

[Event "GrandPrix_29.05"]
[Site "Chess.com"]
[Date "2020.05.29"]
[Round "8"]
[White "Hakob-Hakobyan-Arm"]
[Black "cukus"]
[Result "0-1"]
[WhiteElo "2096"]
[BlackElo "2193"]
[TimeControl "600+2"]
[EndTime "12:59:53 PDT"]
[Termination "cukus won by checkmate"]

1. Nf3 {[%clk 0:10:01.1]} 1... c5 {[%clk 0:09:44.6]} 2. c4 {[%clk 0:10:01.4]}
2... Nf6 {[%clk 0:09:40.6]} 3. Nc3 {[%clk 0:10:02.1]} 3... d5 {[%clk 0:09:37.8]}
4. cxd5 {[%clk 0:10:02.4]} 4... Nxd5 {[%clk 0:09:39.7]} 5. e4 {[%clk 0:10:02.7]}
5... Nb4 {[%clk 0:09:40.4]} 6. Bc4 {[%clk 0:10:00.8]} 6... Nd3+ {[%clk
0:09:40.5]} 7. Ke2 {[%clk 0:10:01.2]} 7... Nf4+ {[%clk 0:09:38.9]} 8. Kf1 {[%clk
0:10:02.5]} 8... Ne6 {[%clk 0:09:38.7]} 9. d3 {[%clk 0:09:58]} 9... g6 {[%clk
0:09:34.8]} 10. h4 {[%clk 0:09:39.6]} 10... h5 {[%clk 0:09:27.8]} 11. Be3 {[%clk
0:09:39.5]} 11... Bg7 {[%clk 0:07:47.8]} 12. Ng5 {[%clk 0:08:39.5]} 12... Nxg5
{[%clk 0:07:34.6]} 13. hxg5 {[%clk 0:08:41.4]} 13... Nd7 {[%clk 0:07:31.5]} 14.
f4 {[%clk 0:08:35.3]} 14... Nb6 {[%clk 0:07:19.7]} 15. Bb3 {[%clk 0:08:27.7]}
15... Bg4 {[%clk 0:07:19.5]} 16. Qd2 {[%clk 0:08:07.8]} 16... Rc8 {[%clk
0:07:19.5]} 17. Nd5 {[%clk 0:07:55.2]} 17... O-O {[%clk 0:07:07.8]} 18. Rc1
{[%clk 0:07:48.7]} 18... Nxd5 {[%clk 0:06:49]} 19. Bxd5 {[%clk 0:07:50.6]} 19...
b6 {[%clk 0:06:48.9]} 20. Kf2 {[%clk 0:07:11]} 20... e6 {[%clk 0:06:39]} 21. Bb3
{[%clk 0:07:10.3]} 21... Qd7 {[%clk 0:06:35.1]} 22. Bd1 {[%clk 0:06:00.5]} 22...
Bxd1 {[%clk 0:06:18.7]} 23. Rcxd1 {[%clk 0:06:02.4]} 23... f6 {[%clk 0:06:13.1]}
24. gxf6 {[%clk 0:05:52.4]} 24... Rxf6 {[%clk 0:06:10.1]} 25. d4 {[%clk
0:05:07]} 25... cxd4 {[%clk 0:05:07.9]} 26. Bxd4 {[%clk 0:05:08.9]} 26... Rxf4+
{[%clk 0:05:01.4]} 27. Qxf4 {[%clk 0:05:08.7]} 27... Bxd4+ {[%clk 0:05:01.1]}
28. Kg3 {[%clk 0:04:34.2]} 28... Qg7 {[%clk 0:04:48.3]} 29. Qg5 {[%clk
0:04:05.4]} 29... Bf6 {[%clk 0:04:12.8]} 30. Qe3 {[%clk 0:04:05.3]} 30... Bxb2
{[%clk 0:04:01.1]} 31. Rhf1 {[%clk 0:03:40.6]} 31... Be5+ {[%clk 0:03:55]} 32.
Kh3 {[%clk 0:03:41.5]} 32... g5 {[%clk 0:03:44.3]} 33. g4 {[%clk 0:03:31]} 33...
Qh6 {[%clk 0:03:32.9]} 34. Rh1 {[%clk 0:02:28]} 34... Bf4 {[%clk 0:03:04.2]} 35.
Qb3 {[%clk 0:02:19.6]} 35... Be5 {[%clk 0:02:52.1]} 36. Qe3 {[%clk 0:02:11.7]}
36... Qf6 {[%clk 0:02:48.6]} 37. Rhf1 {[%clk 0:02:11.3]} 37... Rc2 {[%clk
0:02:27.7]} 38. gxh5 {[%clk 0:01:48.8]} 38... Rh2+ {[%clk 0:02:26.6]} 39. Kg4
{[%clk 0:01:50]} 39... Rh4# {[%clk 0:02:28.5]} 0-1

[Event "GrandPrix_29.05"]
[Site "Chess.com"]
[Date "2020.05.29"]
[Round "8"]
[White "Msb2"]
[Black "LiamVrolijk"]
[Result "1-0"]
[WhiteElo "2636"]
[BlackElo "2441"]
[TimeControl "600+2"]
[EndTime "12:59:56 PDT"]
[Termination "Msb2 won by resignation"]

1. d4 {[%clk 0:10:01.9]} 1... d5 {[%clk 0:10:01]} 2. c4 {[%clk 0:10:02.9]} 2...
e6 {[%clk 0:10:01.8]} 3. Nc3 {[%clk 0:10:03.9]} 3... c5 {[%clk 0:10:02.2]} 4.
cxd5 {[%clk 0:09:58.2]} 4... exd5 {[%clk 0:10:04.1]} 5. Nf3 {[%clk 0:09:54.5]}
5... Nf6 {[%clk 0:10:05.2]} 6. Bg5 {[%clk 0:09:44.5]} 6... Be6 {[%clk
0:10:05.4]} 7. e3 {[%clk 0:09:22.7]} 7... c4 {[%clk 0:10:05.5]} 8. Be2 {[%clk
0:09:22.4]} 8... Bb4 {[%clk 0:10:03.7]} 9. O-O {[%clk 0:09:19.8]} 9... O-O
{[%clk 0:10:04.6]} 10. Qc2 {[%clk 0:09:08.4]} 10... Nbd7 {[%clk 0:09:51.9]} 11.
Ne5 {[%clk 0:08:51]} 11... Qa5 {[%clk 0:09:33]} 12. Nxd7 {[%clk 0:08:22]} 12...
Nxd7 {[%clk 0:09:34.9]} 13. a3 {[%clk 0:08:23.4]} 13... Bxc3 {[%clk 0:08:54.2]}
14. bxc3 {[%clk 0:08:25.3]} 14... Nb6 {[%clk 0:08:55]} 15. a4 {[%clk 0:07:59.4]}
15... Bd7 {[%clk 0:07:42.7]} 16. Be7 {[%clk 0:07:59.1]} 16... Bxa4 {[%clk
0:07:28.7]} 17. Bxf8 {[%clk 0:07:46.9]} 17... Rxf8 {[%clk 0:06:38.2]} 18. Qb2
{[%clk 0:07:06.5]} 18... Qb5 {[%clk 0:06:16.7]} 19. Rfb1 {[%clk 0:06:08.4]}
19... Qc6 {[%clk 0:05:11.6]} 20. Qb4 {[%clk 0:05:28.1]} 20... Qg6 {[%clk
0:04:49.7]} 21. Rb2 {[%clk 0:05:03]} 21... Bc6 {[%clk 0:04:27.3]} 22. Rxa7
{[%clk 0:05:01.6]} 22... Nd7 {[%clk 0:04:28.6]} 23. Qa3 {[%clk 0:04:44.8]} 23...
h5 {[%clk 0:04:25.6]} 24. h3 {[%clk 0:04:34.2]} 24... Nf6 {[%clk 0:04:24.8]} 25.
Ra8 {[%clk 0:04:33.5]} 25... Rxa8 {[%clk 0:04:24.8]} 26. Qxa8+ {[%clk
0:04:35.4]} 26... Kh7 {[%clk 0:04:26.3]} 27. Bd1 {[%clk 0:03:16.6]} 27... Ne4
{[%clk 0:03:42.1]} 28. Bc2 {[%clk 0:03:15.1]} 28... f5 {[%clk 0:03:22.4]} 29.
Bxe4 {[%clk 0:03:09.6]} 29... fxe4 {[%clk 0:03:18.2]} 30. Qf8 {[%clk 0:02:58.2]}
30... Bd7 {[%clk 0:03:05.7]} 31. Rxb7 {[%clk 0:02:03.9]} 31... Bxh3 {[%clk
0:03:05.2]} 32. Rxg7+ {[%clk 0:02:04.6]} 32... Qxg7 {[%clk 0:03:05.9]} 33. Qxg7+
{[%clk 0:02:06.5]} 33... Kxg7 {[%clk 0:03:07.7]} 34. gxh3 {[%clk 0:02:08.4]}
34... Kf6 {[%clk 0:02:48.9]} 35. f3 {[%clk 0:01:40.7]} 35... exf3 {[%clk
0:02:29.6]} 36. Kf2 {[%clk 0:01:39.4]} 36... Kf5 {[%clk 0:02:22.7]} 37. Kxf3
{[%clk 0:01:40.2]} 37... h4 {[%clk 0:02:23.7]} 38. e4+ {[%clk 0:01:41.7]} 1-0

[Event "GrandPrix_29.05"]
[Site "Chess.com"]
[Date "2020.05.29"]
[Round "8"]
[White "Paulz64"]
[Black "switlave"]
[Result "1/2-1/2"]
[WhiteElo "2132"]
[BlackElo "2071"]
[TimeControl "600+2"]
[EndTime "13:00:00 PDT"]
[Termination "Game drawn by repetition"]

1. d4 {[%clk 0:09:58.7]} 1... Nf6 {[%clk 0:09:45.8]} 2. c4 {[%clk 0:09:59.4]}
2... g6 {[%clk 0:09:45.3]} 3. Nc3 {[%clk 0:10:00.4]} 3... d5 {[%clk 0:09:46.6]}
4. Nf3 {[%clk 0:10:01.4]} 4... Bg7 {[%clk 0:09:46.8]} 5. Bg5 {[%clk 0:10:02.9]}
5... dxc4 {[%clk 0:09:47.2]} 6. e3 {[%clk 0:10:02.9]} 6... Be6 {[%clk
0:09:47.1]} 7. Ne5 {[%clk 0:09:57.9]} 7... Nd5 {[%clk 0:09:43.3]} 8. Nxc4 {[%clk
0:09:40.5]} 8... c5 {[%clk 0:09:20.6]} 9. Ne4 {[%clk 0:08:49.1]} 9... cxd4
{[%clk 0:09:01]} 10. exd4 {[%clk 0:08:42.6]} 10... O-O {[%clk 0:08:58.6]} 11.
Be2 {[%clk 0:08:43]} 11... Nc6 {[%clk 0:08:58.7]} 12. O-O {[%clk 0:08:30.6]}
12... Nxd4 {[%clk 0:08:42.1]} 13. Nc5 {[%clk 0:08:22.1]} 13... Bc8 {[%clk
0:08:24.5]} 14. Bd3 {[%clk 0:08:08.3]} 14... h6 {[%clk 0:07:55.2]} 15. Bh4
{[%clk 0:07:55.5]} 15... b6 {[%clk 0:06:54.4]} 16. Nb3 {[%clk 0:07:46.6]} 16...
Nf5 {[%clk 0:06:38.8]} 17. Bxf5 {[%clk 0:07:32.5]} 17... Bxf5 {[%clk 0:06:37.9]}
18. Nd4 {[%clk 0:07:30.7]} 18... Rc8 {[%clk 0:06:19.4]} 19. Rc1 {[%clk
0:07:20.7]} 19... Bd7 {[%clk 0:05:44.1]} 20. Re1 {[%clk 0:07:12.4]} 20... Rc7
{[%clk 0:03:50.2]} 21. Ne5 {[%clk 0:06:52.2]} 21... Re8 {[%clk 0:03:32.7]} 22.
Bg3 {[%clk 0:04:47.3]} 22... Rxc1 {[%clk 0:03:26.4]} 23. Qxc1 {[%clk 0:04:47.9]}
23... e6 {[%clk 0:03:21.4]} 24. Ndc6 {[%clk 0:04:37]} 24... Bxc6 {[%clk
0:03:22.1]} 25. Qxc6 {[%clk 0:04:37.7]} 25... Qc8 {[%clk 0:03:14.1]} 26. Qa4
{[%clk 0:04:33]} 26... a5 {[%clk 0:03:06.1]} 27. h4 {[%clk 0:04:27]} 27... h5
{[%clk 0:03:03.7]} 28. Qb5 {[%clk 0:04:15]} 28... Rd8 {[%clk 0:02:54.8]} 29. Nc6
{[%clk 0:03:59.9]} 29... Qd7 {[%clk 0:02:54.7]} 30. Rc1 {[%clk 0:03:53.6]} 30...
Kh7 {[%clk 0:02:53]} 31. b3 {[%clk 0:03:49.5]} 31... Rc8 {[%clk 0:02:50.6]} 32.
Rc4 {[%clk 0:03:42.8]} 32... Nc3 {[%clk 0:02:41]} 33. Qxb6 {[%clk 0:03:38.5]}
33... Qd1+ {[%clk 0:02:41.6]} 34. Kh2 {[%clk 0:03:38.7]} 34... Ne2 {[%clk
0:02:41.9]} 35. f3 {[%clk 0:03:31.7]} 35... Rxc6 {[%clk 0:02:15.2]} 36. Rxc6
{[%clk 0:03:21.1]} 36... Bd4 {[%clk 0:02:16]} 37. Qc7 {[%clk 0:03:07.8]} 37...
Qg1+ {[%clk 0:01:44.7]} 38. Kh3 {[%clk 0:03:08.6]} 38... Qh1+ {[%clk 0:01:36]}
39. Bh2 {[%clk 0:03:09.4]} 39... Ng1+ {[%clk 0:01:33.8]} 40. Kg3 {[%clk
0:03:06.8]} 40... Ne2+ {[%clk 0:01:26.8]} 41. Kh3 {[%clk 0:03:07.4]} 41... Ng1+
{[%clk 0:01:19.8]} 42. Kg3 {[%clk 0:03:08.2]} 42... Ne2+ {[%clk 0:01:13.7]} 43.
Kh3 {[%clk 0:03:09.3]} 1/2-1/2

[Event "GrandPrix_29.05"]
[Site "Chess.com"]
[Date "2020.05.29"]
[Round "8"]
[White "lelajavakhishvili"]
[Black "Valeriy_Neverov"]
[Result "1-0"]
[WhiteElo "2242"]
[BlackElo "2191"]
[TimeControl "600+2"]
[EndTime "13:00:01 PDT"]
[Termination "lelajavakhishvili won on time"]

1. d4 {[%clk 0:10:01.9]} 1... Nf6 {[%clk 0:09:57.3]} 2. c4 {[%clk 0:10:02.7]}
2... g6 {[%clk 0:09:58.2]} 3. Nf3 {[%clk 0:10:00.8]} 3... Bg7 {[%clk 0:09:58.5]}
4. g3 {[%clk 0:10:01.5]} 4... O-O {[%clk 0:09:58.9]} 5. Bg2 {[%clk 0:10:02.4]}
5... c5 {[%clk 0:09:46.1]} 6. O-O {[%clk 0:09:58.8]} 6... cxd4 {[%clk
0:09:46.2]} 7. Nxd4 {[%clk 0:09:59.1]} 7... Nc6 {[%clk 0:09:47.2]} 8. Nc3 {[%clk
0:09:57.9]} 8... Qa5 {[%clk 0:09:47.8]} 9. e3 {[%clk 0:09:15]} 9... d6 {[%clk
0:09:19.9]} 10. Bxc6 {[%clk 0:09:05.9]} 10... bxc6 {[%clk 0:09:19.5]} 11. Nxc6
{[%clk 0:09:06.9]} 11... Qc7 {[%clk 0:09:18.6]} 12. Nd5 {[%clk 0:09:00.8]} 12...
Nxd5 {[%clk 0:09:19]} 13. cxd5 {[%clk 0:09:00.7]} 13... Bb7 {[%clk 0:08:59.3]}
14. Bd2 {[%clk 0:08:54.5]} 14... Bxb2 {[%clk 0:08:20.3]} 15. Rb1 {[%clk
0:08:47.8]} 15... Bf6 {[%clk 0:04:33.4]} 16. Qa4 {[%clk 0:08:30.8]} 16... Rfc8
{[%clk 0:04:23]} 17. Rfc1 {[%clk 0:08:23.8]} 17... Qd7 {[%clk 0:04:19.3]} 18.
Qb5 {[%clk 0:07:55]} 18... Bxc6 {[%clk 0:03:41.8]} 19. dxc6 {[%clk 0:07:53.9]}
19... Qe6 {[%clk 0:03:31.6]} 20. a4 {[%clk 0:07:24]} 20... h5 {[%clk 0:03:17.2]}
21. h4 {[%clk 0:06:50.9]} 21... Kg7 {[%clk 0:03:15.2]} 22. c7 {[%clk 0:06:46.8]}
22... a6 {[%clk 0:02:43.4]} 23. Qb7 {[%clk 0:06:40.5]} 23... Qa2 {[%clk
0:02:39.3]} 24. Be1 {[%clk 0:06:17.2]} 24... Be5 {[%clk 0:00:16.9]} 25. Qxa8
{[%clk 0:05:40.4]} 25... Rxa8 {[%clk 0:00:16.8]} 26. Rb8 {[%clk 0:05:39.5]}
26... d5 {[%clk 0:00:14]} 27. Rxa8 {[%clk 0:03:37.7]} 27... Bxc7 {[%clk
0:00:14.7]} 28. Rxc7 {[%clk 0:03:38.4]} 28... Qb1 {[%clk 0:00:15.7]} 29. Kf1
{[%clk 0:03:35.1]} 29... Qd3+ {[%clk 0:00:15.5]} 30. Kg2 {[%clk 0:03:34.4]}
30... Qe4+ {[%clk 0:00:16.1]} 31. Kh2 {[%clk 0:03:34.3]} 31... Qxa4 {[%clk
0:00:14.4]} 32. Bc3+ {[%clk 0:03:34.1]} 1-0

[Event "GrandPrix_29.05"]
[Site "Chess.com"]
[Date "2020.05.29"]
[Round "8"]
[White "Dolphin_2010"]
[Black "tacticthunder"]
[Result "0-1"]
[WhiteElo "2080"]
[BlackElo "2191"]
[TimeControl "600+2"]
[EndTime "13:00:03 PDT"]
[Termination "tacticthunder won by checkmate"]

1. e4 {[%clk 0:10:01.9]} 1... c5 {[%clk 0:09:54.3]} 2. Nf3 {[%clk 0:09:59.1]}
2... Nc6 {[%clk 0:09:55.1]} 3. Bb5 {[%clk 0:09:59.3]} 3... g6 {[%clk 0:09:50.7]}
4. Bxc6 {[%clk 0:09:58.8]} 4... bxc6 {[%clk 0:09:52.6]} 5. d4 {[%clk 0:09:54.7]}
5... Bg7 {[%clk 0:09:51.8]} 6. dxc5 {[%clk 0:09:48.1]} 6... Ba6 {[%clk
0:09:50.4]} 7. c3 {[%clk 0:09:17.3]} 7... Nf6 {[%clk 0:09:23.8]} 8. Qc2 {[%clk
0:08:26.4]} 8... O-O {[%clk 0:08:36.8]} 9. Be3 {[%clk 0:07:28.9]} 9... d5 {[%clk
0:08:22.4]} 10. cxd6 {[%clk 0:07:19.8]} 10... exd6 {[%clk 0:08:24.3]} 11. Nbd2
{[%clk 0:07:08.2]} 11... Re8 {[%clk 0:07:52.1]} 12. O-O-O {[%clk 0:06:24.5]}
12... d5 {[%clk 0:07:39.5]} 13. exd5 {[%clk 0:06:20]} 13... Nxd5 {[%clk
0:07:41.4]} 14. Bd4 {[%clk 0:05:19.5]} 14... Nf4 {[%clk 0:07:38.5]} 15. Ne4
{[%clk 0:04:43.3]} 15... Qa5 {[%clk 0:06:18.2]} 16. Kb1 {[%clk 0:03:43.9]} 16...
Rab8 {[%clk 0:06:09.5]} 17. g3 {[%clk 0:03:05.8]} 17... Be2 {[%clk 0:05:53.1]}
18. Bxg7 {[%clk 0:02:23.8]} 18... Bxf3 {[%clk 0:05:31]} 19. Nf6+ {[%clk
0:02:19.7]} 19... Kxg7 {[%clk 0:05:30.8]} 20. Nxe8+ {[%clk 0:02:19.1]} 20...
Rxe8 {[%clk 0:05:32.7]} 21. Rde1 {[%clk 0:02:04.9]} 21... Ne2 {[%clk 0:05:21.6]}
22. Ka1 {[%clk 0:01:49.6]} 22... Nd4 {[%clk 0:03:58.6]} 23. Qd3 {[%clk
0:01:24.1]} 23... Nb3+ {[%clk 0:03:57.3]} 24. Kb1 {[%clk 0:01:22.9]} 24... Rd8
{[%clk 0:03:57.2]} 25. Qc2 {[%clk 0:00:55.7]} 25... Bxh1 {[%clk 0:03:08.3]} 26.
Rxh1 {[%clk 0:00:52.7]} 26... Nd2+ {[%clk 0:03:02.1]} 27. Ka1 {[%clk 0:00:47.9]}
27... Rd5 {[%clk 0:02:44.6]} 28. Rd1 {[%clk 0:00:44.3]} 28... Qxa2+ {[%clk
0:02:38.7]} 29. Kxa2 {[%clk 0:00:46.2]} 29... Ra5+ {[%clk 0:02:39.2]} 30. Qa4
{[%clk 0:00:48.1]} 30... Rxa4# {[%clk 0:02:41.1]} 0-1

[Event "GrandPrix_29.05"]
[Site "Chess.com"]
[Date "2020.05.29"]
[Round "8"]
[White "Velis23"]
[Black "klimkoj"]
[Result "0-1"]
[WhiteElo "2104"]
[BlackElo "2122"]
[TimeControl "600+2"]
[EndTime "13:00:03 PDT"]
[Termination "klimkoj won by resignation"]

1. d4 {[%clk 0:10:01.9]} 1... Nf6 {[%clk 0:09:59.6]} 2. Bf4 {[%clk 0:10:02]}
2... g6 {[%clk 0:09:59.9]} 3. e3 {[%clk 0:10:02.7]} 3... Bg7 {[%clk 0:10:00.7]}
4. Nf3 {[%clk 0:10:04.1]} 4... O-O {[%clk 0:10:01.7]} 5. Be2 {[%clk 0:10:03.5]}
5... d6 {[%clk 0:10:02.9]} 6. h3 {[%clk 0:10:04.4]} 6... Nc6 {[%clk 0:10:04.2]}
7. O-O {[%clk 0:10:02.4]} 7... Nd7 {[%clk 0:10:04.9]} 8. Bh2 {[%clk 0:10:01.7]}
8... e5 {[%clk 0:10:05]} 9. c3 {[%clk 0:10:03.2]} 9... f5 {[%clk 0:10:05.3]} 10.
b4 {[%clk 0:10:02.3]} 10... Qe7 {[%clk 0:10:04.1]} 11. b5 {[%clk 0:10:00.6]}
11... Nd8 {[%clk 0:10:02.6]} 12. a4 {[%clk 0:09:59.6]} 12... e4 {[%clk
0:09:45.4]} 13. Nfd2 {[%clk 0:09:59]} 13... Ne6 {[%clk 0:09:46]} 14. c4 {[%clk
0:09:58]} 14... Nf6 {[%clk 0:09:40.3]} 15. Nc3 {[%clk 0:09:55.6]} 15... Bd7
{[%clk 0:09:36.2]} 16. a5 {[%clk 0:09:46.7]} 16... Rfc8 {[%clk 0:09:17.5]} 17.
Qb3 {[%clk 0:09:39.2]} 17... Kh8 {[%clk 0:09:15.5]} 18. Qa3 {[%clk 0:09:34]}
18... Qf7 {[%clk 0:08:36.1]} 19. Rac1 {[%clk 0:09:03.3]} 19... Bf8 {[%clk
0:08:33.3]} 20. Qb2 {[%clk 0:08:56.7]} 20... c5 {[%clk 0:08:04]} 21. bxc6 {[%clk
0:08:09]} 21... bxc6 {[%clk 0:08:03.7]} 22. d5 {[%clk 0:08:09.2]} 22... Nc5
{[%clk 0:07:54.3]} 23. dxc6 {[%clk 0:08:01.8]} 23... Bxc6 {[%clk 0:07:51.3]} 24.
Nd5 {[%clk 0:08:03.1]} 24... Bg7 {[%clk 0:07:47.2]} 25. Qa3 {[%clk 0:06:33.5]}
25... Nxd5 {[%clk 0:07:13.4]} 26. cxd5 {[%clk 0:06:31.4]} 26... Qxd5 {[%clk
0:06:57.6]} 27. Nc4 {[%clk 0:06:29.9]} 27... Nd3 {[%clk 0:06:50.8]} 28. Nxd6
{[%clk 0:06:07.3]} 28... Bb2 {[%clk 0:06:20.2]} 29. Rxc6 {[%clk 0:04:55.4]}
29... Bxa3 {[%clk 0:05:06.4]} 30. Rxc8+ {[%clk 0:04:49.4]} 30... Rxc8 {[%clk
0:05:06.7]} 31. Nxc8 {[%clk 0:04:50.6]} 31... Qd7 {[%clk 0:05:07.4]} 32. Rb1
{[%clk 0:04:23.8]} 32... Bb4 {[%clk 0:03:52.6]} 33. Bxd3 {[%clk 0:03:36.9]}
33... exd3 {[%clk 0:03:12.1]} 34. Be5+ {[%clk 0:03:36.7]} 34... Kg8 {[%clk
0:03:12.1]} 35. Rxb4 {[%clk 0:03:36.5]} 35... d2 {[%clk 0:03:05.6]} 36. Rd4
{[%clk 0:03:03.9]} 36... d1=Q+ {[%clk 0:03:05.8]} 37. Rxd1 {[%clk 0:03:04.1]}
37... Qxd1+ {[%clk 0:03:06.1]} 38. Kh2 {[%clk 0:03:04.9]} 38... Qd7 {[%clk
0:03:04.6]} 39. Nd6 {[%clk 0:03:02.9]} 39... Qa4 {[%clk 0:02:49]} 40. Bd4 {[%clk
0:02:23.6]} 40... Qxa5 {[%clk 0:02:40.7]} 41. g3 {[%clk 0:02:17.2]} 41... Qa2
{[%clk 0:02:29.5]} 42. Kg1 {[%clk 0:02:09]} 42... a5 {[%clk 0:02:19.9]} 43. Nb5
{[%clk 0:02:08.3]} 43... Qb1+ {[%clk 0:02:19.4]} 0-1